[Event "Early-Titled-Tuesday-Blitz-May-28-2024"]
[Site "Chess.com"]
[Date "2024.05.28"]
[Round "1"]
[White "ThetNaung291"]
[Black "Evan_Attaker"]
[Result "1-0"]
[WhiteElo "2360"]
[BlackElo "2634"]
[TimeControl "180+1"]
[EndTime "8:06:50 PDT"]
[Termination "ThetNaung291 won by checkmate"]

1. d4 {[%clk 0:03:00.5]} 1... c5 {[%clk 0:02:56.9]} 2. d5 {[%clk 0:02:59.5]}
2... d6 {[%clk 0:02:55.6]} 3. c4 {[%clk 0:02:59]} 3... g6 {[%clk 0:02:54.2]} 4.
Bd2 {[%clk 0:02:58.2]} 4... Bg7 {[%clk 0:02:45.9]} 5. Bc3 {[%clk 0:02:58]} 5...
Nf6 {[%clk 0:02:44.4]} 6. Nd2 {[%clk 0:02:57]} 6... O-O {[%clk 0:02:44]} 7. e4
{[%clk 0:02:56.5]} 7... Na6 {[%clk 0:02:44]} 8. Ngf3 {[%clk 0:02:54.4]} 8... Nc7
{[%clk 0:02:44.1]} 9. Bd3 {[%clk 0:02:53.3]} 9... a6 {[%clk 0:02:42.3]} 10. a4
{[%clk 0:02:52.6]} 10... Rb8 {[%clk 0:02:42.6]} 11. a5 {[%clk 0:02:51.4]} 11...
b5 {[%clk 0:02:42.5]} 12. axb6 {[%clk 0:02:50.8]} 12... Rxb6 {[%clk 0:02:42.9]}
13. O-O {[%clk 0:02:50.3]} 13... Bg4 {[%clk 0:02:42.8]} 14. h3 {[%clk
0:02:49.2]} 14... Bxf3 {[%clk 0:02:42.4]} 15. Nxf3 {[%clk 0:02:49]} 15... Nd7
{[%clk 0:02:40]} 16. Bxg7 {[%clk 0:02:45.6]} 16... Kxg7 {[%clk 0:02:40.9]} 17.
Qc2 {[%clk 0:02:44.5]} 17... Qb8 {[%clk 0:02:39.6]} 18. Ra2 {[%clk 0:02:43.7]}
18... e6 {[%clk 0:02:30.9]} 19. Nd2 {[%clk 0:02:39.7]} 19... Re8 {[%clk
0:02:28.1]} 20. f4 {[%clk 0:02:36.8]} 20... exd5 {[%clk 0:02:25.7]} 21. cxd5
{[%clk 0:02:36]} 21... Nb5 {[%clk 0:02:25]} 22. Nc4 {[%clk 0:02:35]} 22... Nd4
{[%clk 0:02:24.6]} 23. Qc3 {[%clk 0:02:33.1]} 23... Rb3 {[%clk 0:02:22.2]} 24.
Qd2 {[%clk 0:02:31.9]} 24... Nf6 {[%clk 0:01:59.9]} 25. e5 {[%clk 0:02:26.5]}
25... dxe5 {[%clk 0:01:50.2]} 26. fxe5 {[%clk 0:02:25.3]} 26... Nxd5 {[%clk
0:01:42.9]} 27. Nd6 {[%clk 0:02:24.5]} 27... Rxe5 {[%clk 0:01:20.2]} 28. Rxf7+
{[%clk 0:02:07]} 28... Kh8 {[%clk 0:01:01.4]} 29. Qh6 {[%clk 0:02:04.8]} 29...
Re1+ {[%clk 0:00:17.5]} 30. Kf2 {[%clk 0:02:01.3]} 30... Qg8 {[%clk 0:00:14.6]}
31. Rf8 {[%clk 0:01:57.4]} 31... Re7 {[%clk 0:00:14.6]} 32. Rxg8+ {[%clk
0:01:53.9]} 32... Kxg8 {[%clk 0:00:15.5]} 33. Bc4 {[%clk 0:01:45.2]} 33... Rf7+
{[%clk 0:00:06.9]} 34. Nxf7 {[%clk 0:01:43.2]} 34... Nf5 {[%clk 0:00:07.3]} 35.
Bxb3 {[%clk 0:01:35.1]} 35... Nxh6 {[%clk 0:00:04]} 36. Nxh6+ {[%clk 0:01:34.8]}
36... Kg7 {[%clk 0:00:04.9]} 37. Bxd5 {[%clk 0:01:35.3]} 37... Kxh6 {[%clk
0:00:05.8]} 38. Rxa6 {[%clk 0:01:35.7]} 38... Kh5 {[%clk 0:00:06.7]} 39. g3
{[%clk 0:01:35]} 39... c4 {[%clk 0:00:07.6]} 40. Bf3+ {[%clk 0:01:35.1]} 40...
Kh6 {[%clk 0:00:07.4]} 41. h4 {[%clk 0:01:35.1]} 41... c3 {[%clk 0:00:07.3]} 42.
bxc3 {[%clk 0:01:35.8]} 42... Kg7 {[%clk 0:00:07.5]} 43. g4 {[%clk 0:01:35.5]}
43... Kh6 {[%clk 0:00:08.4]} 44. g5+ {[%clk 0:01:34]} 44... Kg7 {[%clk
0:00:08.6]} 45. Ra7+ {[%clk 0:01:34.8]} 45... Kh8 {[%clk 0:00:09.5]} 46. Bd5
{[%clk 0:01:30.8]} 46... h5 {[%clk 0:00:10.4]} 47. gxh6 {[%clk 0:01:30.5]} 47...
g5 {[%clk 0:00:11]} 48. Be4 {[%clk 0:01:27.2]} 48... g4 {[%clk 0:00:07.9]} 49.
Ra8# {[%clk 0:01:26.1]} 1-0

[Event "Early-Titled-Tuesday-Blitz-May-28-2024"]
[Site "Chess.com"]
[Date "2024.05.28"]
[Round "1"]
[White "campochess"]
[Black "Barmen_EV"]
[Result "0-1"]
[WhiteElo "2128"]
[BlackElo "2571"]
[TimeControl "180+1"]
[EndTime "8:06:52 PDT"]
[Termination "Barmen_EV won on time"]

1. e4 {[%clk 0:02:59.9]} 1... e6 {[%clk 0:02:59.9]} 2. Qe2 {[%clk 0:02:59.5]}
2... c5 {[%clk 0:02:58]} 3. c3 {[%clk 0:02:58.2]} 3... Nc6 {[%clk 0:02:57.8]} 4.
Nf3 {[%clk 0:02:28.4]} 4... d6 {[%clk 0:02:56.9]} 5. d3 {[%clk 0:02:27.6]} 5...
Be7 {[%clk 0:02:56.6]} 6. Be3 {[%clk 0:02:27]} 6... Nf6 {[%clk 0:02:56.1]} 7. h3
{[%clk 0:02:26]} 7... O-O {[%clk 0:02:56]} 8. Nbd2 {[%clk 0:02:25.6]} 8... d5
{[%clk 0:02:53.9]} 9. g4 {[%clk 0:02:18.7]} 9... d4 {[%clk 0:02:50.7]} 10. Bg5
{[%clk 0:02:15.1]} 10... dxc3 {[%clk 0:02:39.3]} 11. bxc3 {[%clk 0:02:14.3]}
11... h6 {[%clk 0:02:39.8]} 12. Bh4 {[%clk 0:02:12.5]} 12... Qa5 {[%clk
0:02:36.8]} 13. Nb1 {[%clk 0:01:53.5]} 13... Nd4 {[%clk 0:02:25.2]} 14. Nxd4
{[%clk 0:01:50.5]} 14... cxd4 {[%clk 0:02:25]} 15. Qc2 {[%clk 0:01:38.4]} 15...
dxc3 {[%clk 0:02:23.8]} 16. Be2 {[%clk 0:01:31]} 16... Bd7 {[%clk 0:02:20.7]}
17. a4 {[%clk 0:01:29.2]} 17... b5 {[%clk 0:02:10.5]} 18. O-O {[%clk 0:01:15.9]}
18... b4 {[%clk 0:02:10.1]} 19. Qb3 {[%clk 0:01:11.5]} 19... Rfc8 {[%clk
0:01:56.7]} 20. Bg3 {[%clk 0:01:09.1]} 20... e5 {[%clk 0:01:49.1]} 21. d4 {[%clk
0:00:42.7]} 21... Nxe4 {[%clk 0:01:24.6]} 22. Bc4 {[%clk 0:00:37.4]} 22... Rxc4
{[%clk 0:00:55.6]} 23. Qxc4 {[%clk 0:00:36.4]} 23... Rc8 {[%clk 0:00:54.9]} 24.
Qb3 {[%clk 0:00:32.6]} 24... c2 {[%clk 0:00:45.1]} 25. Bxe5 {[%clk 0:00:22]}
25... cxb1=Q {[%clk 0:00:41.4]} 26. Raxb1 {[%clk 0:00:17.9]} 26... Nd2 {[%clk
0:00:40.5]} 27. Qe3 {[%clk 0:00:14.7]} 27... Nxb1 {[%clk 0:00:37.7]} 28. Rxb1
{[%clk 0:00:14.5]} 28... Qd5 {[%clk 0:00:36.4]} 29. g5 {[%clk 0:00:12.6]} 29...
Bc6 {[%clk 0:00:35.5]} 30. f3 {[%clk 0:00:10.1]} 30... Bxg5 {[%clk 0:00:35.5]}
0-1

[Event "Early-Titled-Tuesday-Blitz-May-28-2024"]
[Site "Chess.com"]
[Date "2024.05.28"]
[Round "1"]
[White "Aryan_Tamadon"]
[Black "Alexander_Donchenko"]
[Result "0-1"]
[WhiteElo "2502"]
[BlackElo "2902"]
[TimeControl "180+1"]
[EndTime "8:06:58 PDT"]
[Termination "Alexander_Donchenko won on time"]

1. Nf3 {[%clk 0:03:00.9]} 1... Nf6 {[%clk 0:02:59.8]} 2. g3 {[%clk 0:03:00.6]}
2... b6 {[%clk 0:03:00.3]} 3. Bg2 {[%clk 0:03:00.9]} 3... Bb7 {[%clk 0:03:01]}
4. O-O {[%clk 0:03:01.3]} 4... g6 {[%clk 0:03:01.7]} 5. b3 {[%clk 0:03:01.8]}
5... Bg7 {[%clk 0:03:02.1]} 6. Bb2 {[%clk 0:03:02.5]} 6... O-O {[%clk
0:03:02.7]} 7. e3 {[%clk 0:03:00.2]} 7... d6 {[%clk 0:03:02.6]} 8. d4 {[%clk
0:02:59.6]} 8... c5 {[%clk 0:03:02.4]} 9. Nbd2 {[%clk 0:02:58.2]} 9... Nbd7
{[%clk 0:03:02.2]} 10. a4 {[%clk 0:02:52.1]} 10... a6 {[%clk 0:03:01.3]} 11. c4
{[%clk 0:02:43.5]} 11... cxd4 {[%clk 0:02:57.3]} 12. Nxd4 {[%clk 0:02:39.7]}
12... Bxg2 {[%clk 0:02:56.7]} 13. Kxg2 {[%clk 0:02:40.6]} 13... Rc8 {[%clk
0:02:55.5]} 14. Qf3 {[%clk 0:02:34]} 14... Nc5 {[%clk 0:02:53.5]} 15. Rab1
{[%clk 0:01:54.1]} 15... Qc7 {[%clk 0:02:50.7]} 16. Nc2 {[%clk 0:01:49.2]} 16...
Rfd8 {[%clk 0:02:41.2]} 17. Nb4 {[%clk 0:01:43.8]} 17... a5 {[%clk 0:02:24.3]}
18. Bxf6 {[%clk 0:01:38.5]} 18... axb4 {[%clk 0:02:24.2]} 19. Bxg7 {[%clk
0:01:30.7]} 19... Kxg7 {[%clk 0:02:25.1]} 20. Rfd1 {[%clk 0:01:23.3]} 20... f5
{[%clk 0:02:06.6]} 21. e4 {[%clk 0:01:00.6]} 21... Rf8 {[%clk 0:01:42.4]} 22.
Qe3 {[%clk 0:00:49.2]} 22... Qc6 {[%clk 0:01:29.4]} 23. Re1 {[%clk 0:00:49.6]}
23... e5 {[%clk 0:01:26.3]} 24. f4 {[%clk 0:00:42]} 24... exf4 {[%clk
0:01:23.5]} 25. Qd4+ {[%clk 0:00:35.5]} 25... Kg8 {[%clk 0:01:17.9]} 26. Kh3
{[%clk 0:00:20.6]} 26... fxg3 {[%clk 0:01:08.5]} 27. hxg3 {[%clk 0:00:21.5]}
27... Qd7 {[%clk 0:01:00.1]} 28. exf5 {[%clk 0:00:18.4]} 28... Rxf5 {[%clk
0:00:54.7]} 29. g4 {[%clk 0:00:16.8]} 29... Rf7 {[%clk 0:00:48.6]} 30. Re3
{[%clk 0:00:16.9]} 30... Ne6 {[%clk 0:00:46.6]} 31. Qb2 {[%clk 0:00:11.2]} 31...
Rcf8 {[%clk 0:00:36.9]} 32. Rbe1 {[%clk 0:00:11]} 32... Ng5+ {[%clk 0:00:36.3]}
33. Kg3 {[%clk 0:00:10.6]} 33... Rf4 {[%clk 0:00:35.5]} 34. Kh2 {[%clk
0:00:02.3]} 34... Qxg4 {[%clk 0:00:34.1]} 35. Rh3 {[%clk 0:00:01]} 35... Qxh3+
{[%clk 0:00:33.7]} 0-1

[Event "Early-Titled-Tuesday-Blitz-May-28-2024"]
[Site "Chess.com"]
[Date "2024.05.28"]
[Round "1"]
[White "JiaHaoxiang"]
[Black "Thebigsqueeze"]
[Result "1-0"]
[WhiteElo "2616"]
[BlackElo "2301"]
[TimeControl "180+1"]
[EndTime "8:06:58 PDT"]
[Termination "JiaHaoxiang won by resignation"]

1. e4 {[%clk 0:02:57.8]} 1... e6 {[%clk 0:02:59.5]} 2. d4 {[%clk 0:02:57.8]}
2... d5 {[%clk 0:02:59.5]} 3. e5 {[%clk 0:02:58.2]} 3... c5 {[%clk 0:02:59.4]}
4. c3 {[%clk 0:02:58.9]} 4... Bd7 {[%clk 0:02:59.5]} 5. Nf3 {[%clk 0:02:59.3]}
5... Qb6 {[%clk 0:02:59.2]} 6. a4 {[%clk 0:02:42.4]} 6... cxd4 {[%clk
0:02:53.1]} 7. cxd4 {[%clk 0:02:41.7]} 7... Nc6 {[%clk 0:02:50.7]} 8. Nc3 {[%clk
0:02:39.7]} 8... Na5 {[%clk 0:02:49.8]} 9. Be2 {[%clk 0:02:33.9]} 9... Ne7
{[%clk 0:02:45.8]} 10. O-O {[%clk 0:02:32.6]} 10... Nec6 {[%clk 0:02:45.7]} 11.
Be3 {[%clk 0:02:28.3]} 11... Qb3 {[%clk 0:02:39.3]} 12. Nb5 {[%clk 0:02:23.9]}
12... Qxd1 {[%clk 0:02:34.2]} 13. Rfxd1 {[%clk 0:02:21.4]} 13... Rc8 {[%clk
0:02:26.5]} 14. Rac1 {[%clk 0:02:15.4]} 14... a6 {[%clk 0:02:24.1]} 15. Nd6+
{[%clk 0:02:14.1]} 15... Bxd6 {[%clk 0:02:23.8]} 16. exd6 {[%clk 0:02:15]} 16...
f6 {[%clk 0:02:23.5]} 17. Bf4 {[%clk 0:02:13.9]} 17... Nb4 {[%clk 0:02:12.7]}
18. Rxc8+ {[%clk 0:02:11.4]} 18... Bxc8 {[%clk 0:02:12.8]} 19. Rc1 {[%clk
0:02:11.8]} 19... Nbc6 {[%clk 0:02:04.6]} 20. Rc5 {[%clk 0:02:08.9]} 20... Nb3
{[%clk 0:01:51.8]} 21. Rc3 {[%clk 0:02:06.8]} 21... Nba5 {[%clk 0:01:47.3]} 22.
Rc5 {[%clk 0:02:03.6]} 22... Bd7 {[%clk 0:01:44.6]} 23. b4 {[%clk 0:01:30.5]}
23... Nxb4 {[%clk 0:01:39.4]} 24. Rc7 {[%clk 0:01:30.6]} 24... Nbc6 {[%clk
0:01:27.7]} 25. Bd2 {[%clk 0:01:22.8]} 25... Kd8 {[%clk 0:01:18.7]} 26. Bxa5
{[%clk 0:01:10.7]} 26... Nxa5 {[%clk 0:01:18.4]} 27. Ne1 {[%clk 0:01:11.3]}
27... b5 {[%clk 0:01:16.6]} 28. axb5 {[%clk 0:01:10.5]} 28... axb5 {[%clk
0:01:16.4]} 29. Nd3 {[%clk 0:01:06.1]} 29... Nb3 {[%clk 0:01:11.8]} 30. Nc5
{[%clk 0:01:05]} 30... Nxc5 {[%clk 0:01:11.4]} 31. dxc5 {[%clk 0:01:05.9]} 31...
b4 {[%clk 0:01:06.4]} 32. Rb7 {[%clk 0:01:01.5]} 32... Bc8 {[%clk 0:01:00.3]}
33. Rxb4 {[%clk 0:00:58.6]} 33... e5 {[%clk 0:00:58.7]} 34. c6 {[%clk
0:00:57.6]} 34... Re8 {[%clk 0:00:58.2]} 35. Rb8 {[%clk 0:00:56.7]} 35... Re6
{[%clk 0:00:54.4]} 36. c7+ {[%clk 0:00:51.1]} 36... Kd7 {[%clk 0:00:51.8]} 37.
Bg4 {[%clk 0:00:29.6]} 37... Kxd6 {[%clk 0:00:46.1]} 38. Bxe6 {[%clk 0:00:29.9]}
38... Bxe6 {[%clk 0:00:46.6]} 39. c8=Q {[%clk 0:00:30.4]} 39... Bxc8 {[%clk
0:00:47.2]} 40. Rxc8 {[%clk 0:00:31.3]} 40... e4 {[%clk 0:00:45.8]} 41. Kf1
{[%clk 0:00:30.9]} 41... h6 {[%clk 0:00:43.6]} 42. Ke2 {[%clk 0:00:31.1]} 42...
g5 {[%clk 0:00:43.7]} 43. Rh8 {[%clk 0:00:31.2]} 1-0

[Event "Early-Titled-Tuesday-Blitz-May-28-2024"]
[Site "Chess.com"]
[Date "2024.05.28"]
[Round "1"]
[White "ChrisTool2"]
[Black "Yeritsyaan"]
[Result "0-1"]
[WhiteElo "2392"]
[BlackElo "2717"]
[TimeControl "180+1"]
[EndTime "8:07:01 PDT"]
[Termination "Yeritsyaan won by checkmate"]

1. d4 {[%clk 0:02:58.6]} 1... Nf6 {[%clk 0:02:59.8]} 2. c4 {[%clk 0:02:57]} 2...
g6 {[%clk 0:02:57.8]} 3. f3 {[%clk 0:02:56.5]} 3... d5 {[%clk 0:02:54.8]} 4.
cxd5 {[%clk 0:02:53]} 4... Nxd5 {[%clk 0:02:55.7]} 5. e4 {[%clk 0:02:53.7]} 5...
Nb6 {[%clk 0:02:53.8]} 6. Nc3 {[%clk 0:02:54.3]} 6... Bg7 {[%clk 0:02:53.2]} 7.
Be3 {[%clk 0:02:54.9]} 7... O-O {[%clk 0:02:52.9]} 8. Qd2 {[%clk 0:02:54.9]}
8... Nc6 {[%clk 0:02:53.3]} 9. O-O-O {[%clk 0:02:55.3]} 9... e5 {[%clk
0:02:53.1]} 10. d5 {[%clk 0:02:51.4]} 10... Nd4 {[%clk 0:02:53.5]} 11. f4 {[%clk
0:02:49.8]} 11... Bg4 {[%clk 0:02:45]} 12. Re1 {[%clk 0:02:49.3]} 12... c5
{[%clk 0:02:43.1]} 13. h3 {[%clk 0:02:46.3]} 13... Bd7 {[%clk 0:02:36.2]} 14.
Nf3 {[%clk 0:02:46]} 14... Nxf3 {[%clk 0:02:27.3]} 15. gxf3 {[%clk 0:02:46.9]}
15... exf4 {[%clk 0:02:23.5]} 16. Bxf4 {[%clk 0:02:41.6]} 16... Na4 {[%clk
0:02:24]} 17. Nxa4 {[%clk 0:02:31.7]} 17... Bxa4 {[%clk 0:02:24.9]} 18. e5
{[%clk 0:02:20.3]} 18... c4 {[%clk 0:02:11.5]} 19. Kb1 {[%clk 0:02:17]} 19...
Rc8 {[%clk 0:02:09]} 20. Qb4 {[%clk 0:02:00.4]} 20... b5 {[%clk 0:02:04.4]} 21.
e6 {[%clk 0:01:29.1]} 21... Qf6 {[%clk 0:01:59]} 22. Bd2 {[%clk 0:01:14.4]}
22... Qxf3 {[%clk 0:01:29.1]} 23. e7 {[%clk 0:00:57.9]} 23... Qxh1 {[%clk
0:01:17.4]} 24. exf8=Q+ {[%clk 0:00:40.6]} 24... Bxf8 {[%clk 0:01:18.3]} 25. d6
{[%clk 0:00:39.7]} 25... Rd8 {[%clk 0:01:08.2]} 26. Bg5 {[%clk 0:00:21]} 26...
Rxd6 {[%clk 0:00:55.3]} 27. Bh6 {[%clk 0:00:17.7]} 27... Rd8 {[%clk 0:00:32.2]}
28. Bxf8 {[%clk 0:00:14.3]} 28... Qe4+ {[%clk 0:00:27.3]} 29. Ka1 {[%clk
0:00:11.5]} 29... Qc2 {[%clk 0:00:19.6]} 30. Bh6 {[%clk 0:00:05.5]} 30... Rd1+
{[%clk 0:00:19.3]} 31. Bc1 {[%clk 0:00:01.8]} 31... Qxc1# {[%clk 0:00:18.3]} 0-1

[Event "Early-Titled-Tuesday-Blitz-May-28-2024"]
[Site "Chess.com"]
[Date "2024.05.28"]
[Round "1"]
[White "DishonorOnYourCow"]
[Black "FischerKasparow"]
[Result "1-0"]
[WhiteElo "2570"]
[BlackElo "2106"]
[TimeControl "180+1"]
[EndTime "8:07:01 PDT"]
[Termination "DishonorOnYourCow won by checkmate"]

1. d4 {[%clk 0:03:00.9]} 1... Nf6 {[%clk 0:02:58.2]} 2. c4 {[%clk 0:03:00.4]}
2... c5 {[%clk 0:02:58.2]} 3. d5 {[%clk 0:03:00.2]} 3... b5 {[%clk 0:02:58.1]}
4. cxb5 {[%clk 0:03:00.8]} 4... a6 {[%clk 0:02:58.2]} 5. bxa6 {[%clk 0:03:01]}
5... Bxa6 {[%clk 0:02:58]} 6. Nc3 {[%clk 0:03:00.7]} 6... g6 {[%clk 0:02:57.8]}
7. Nf3 {[%clk 0:03:00.7]} 7... Bg7 {[%clk 0:02:57.3]} 8. g3 {[%clk 0:03:00.6]}
8... d6 {[%clk 0:02:57.4]} 9. e4 {[%clk 0:02:58.9]} 9... Bxf1 {[%clk 0:02:54.5]}
10. Kxf1 {[%clk 0:02:58.1]} 10... O-O {[%clk 0:02:54.3]} 11. Kg2 {[%clk
0:02:56.5]} 11... Nbd7 {[%clk 0:02:54.2]} 12. a4 {[%clk 0:02:54.8]} 12... Ra6
{[%clk 0:02:53.5]} 13. Qc2 {[%clk 0:02:50.5]} 13... Qa8 {[%clk 0:02:53.3]} 14.
Nb5 {[%clk 0:02:43.6]} 14... Rc8 {[%clk 0:02:52.6]} 15. Bf4 {[%clk 0:02:33.6]}
15... Ne8 {[%clk 0:02:51]} 16. h4 {[%clk 0:02:26.6]} 16... h5 {[%clk 0:02:48.1]}
17. Ra2 {[%clk 0:02:18.9]} 17... Nc7 {[%clk 0:02:47.7]} 18. Nxc7 {[%clk
0:02:17.7]} 18... Rxc7 {[%clk 0:02:48.6]} 19. b3 {[%clk 0:02:17.7]} 19... Rb7
{[%clk 0:02:42]} 20. Nd2 {[%clk 0:02:18.6]} 20... Rb4 {[%clk 0:02:36.5]} 21. Nc4
{[%clk 0:02:15.8]} 21... Nb6 {[%clk 0:02:29.5]} 22. Bd2 {[%clk 0:02:10.4]} 22...
Nxc4 {[%clk 0:02:03]} 23. Bxb4 {[%clk 0:02:08.6]} 23... Ne3+ {[%clk 0:02:02.4]}
24. fxe3 {[%clk 0:02:08.6]} 24... cxb4 {[%clk 0:02:02.5]} 25. Qc4 {[%clk
0:01:54.8]} 25... Bc3 {[%clk 0:02:01.2]} 26. Rc1 {[%clk 0:01:54.7]} 26... Qb7
{[%clk 0:01:53.4]} 27. Rxc3 {[%clk 0:01:52.3]} 27... bxc3 {[%clk 0:01:52.9]} 28.
Qxc3 {[%clk 0:01:52.8]} 28... Qd7 {[%clk 0:01:47.5]} 29. a5 {[%clk 0:01:49.2]}
29... Qg4 {[%clk 0:01:41.2]} 30. Qc4 {[%clk 0:01:46]} 30... Ra8 {[%clk 0:01:32]}
31. a6 {[%clk 0:01:43.8]} 31... Rc8 {[%clk 0:01:31.8]} 32. a7 {[%clk 0:01:41.6]}
32... Rxc4 {[%clk 0:01:28.4]} 33. bxc4 {[%clk 0:01:41.6]} 33... Qxe4+ {[%clk
0:01:26]} 34. Kh2 {[%clk 0:01:41.8]} 34... Qxe3 {[%clk 0:00:48.1]} 35. a8=Q+
{[%clk 0:01:40.1]} 35... Kg7 {[%clk 0:00:48.8]} 36. Qa3 {[%clk 0:01:39.4]} 36...
Qe4 {[%clk 0:00:43.5]} 37. Qb2+ {[%clk 0:01:38.2]} 37... f6 {[%clk 0:00:43.5]}
38. Ra7 {[%clk 0:01:37]} 38... Kh6 {[%clk 0:00:37.8]} 39. Qd2+ {[%clk
0:01:33.8]} 39... g5 {[%clk 0:00:36.7]} 40. hxg5+ {[%clk 0:01:30.3]} 40... fxg5
{[%clk 0:00:30.6]} 41. Ra3 {[%clk 0:01:21.5]} 41... Qxc4 {[%clk 0:00:25.9]} 42.
Re3 {[%clk 0:01:19.5]} 42... h4 {[%clk 0:00:19.4]} 43. Re6+ {[%clk 0:01:17.4]}
43... Kh5 {[%clk 0:00:16.6]} 44. Qd1+ {[%clk 0:01:05.5]} 44... g4 {[%clk
0:00:13]} 45. Qd2 {[%clk 0:01:04.5]} 45... hxg3+ {[%clk 0:00:11.1]} 46. Kg2
{[%clk 0:00:56.8]} 46... Qf4 {[%clk 0:00:03.2]} 47. Qxf4 {[%clk 0:00:54.5]}
47... Kh4 {[%clk 0:00:01.6]} 48. Rh6# {[%clk 0:00:55.4]} 1-0

[Event "Early-Titled-Tuesday-Blitz-May-28-2024"]
[Site "Chess.com"]
[Date "2024.05.28"]
[Round "1"]
[White "ailime26"]
[Black "KubaGepard"]
[Result "0-1"]
[WhiteElo "2126"]
[BlackElo "2575"]
[TimeControl "180+1"]
[EndTime "8:07:04 PDT"]
[Termination "KubaGepard won by resignation"]

1. Nf3 {[%clk 0:02:55.8]} 1... d5 {[%clk 0:02:57.3]} 2. g3 {[%clk 0:02:55.6]}
2... Nf6 {[%clk 0:02:56.6]} 3. Bg2 {[%clk 0:02:55.6]} 3... g6 {[%clk 0:02:57.2]}
4. O-O {[%clk 0:02:55.3]} 4... Bg7 {[%clk 0:02:57.9]} 5. d3 {[%clk 0:02:52.4]}
5... O-O {[%clk 0:02:57.2]} 6. c4 {[%clk 0:02:51]} 6... Nc6 {[%clk 0:02:52.3]}
7. Bf4 {[%clk 0:02:48.2]} 7... Nh5 {[%clk 0:02:34.3]} 8. Bc1 {[%clk 0:02:39.1]}
8... d4 {[%clk 0:02:31.5]} 9. a3 {[%clk 0:02:35.1]} 9... a5 {[%clk 0:02:30.7]}
10. Qb3 {[%clk 0:02:30.8]} 10... a4 {[%clk 0:02:28.9]} 11. Qc2 {[%clk
0:02:26.9]} 11... Bd7 {[%clk 0:02:23.8]} 12. Nbd2 {[%clk 0:02:25.4]} 12... Na5
{[%clk 0:02:18.1]} 13. b3 {[%clk 0:02:19.2]} 13... axb3 {[%clk 0:02:18]} 14. Qb2
{[%clk 0:02:13.6]} 14... Ba4 {[%clk 0:02:13.5]} 15. Ne4 {[%clk 0:02:09.6]} 15...
b6 {[%clk 0:02:09.6]} 16. Bd2 {[%clk 0:01:59.3]} 16... Nb7 {[%clk 0:02:05.1]}
17. g4 {[%clk 0:01:53.5]} 17... Nf6 {[%clk 0:02:02.8]} 18. Nxf6+ {[%clk
0:01:36.1]} 18... Bxf6 {[%clk 0:02:03.7]} 19. Bh6 {[%clk 0:01:30.2]} 19... Re8
{[%clk 0:02:03]} 20. Nd2 {[%clk 0:01:17.5]} 20... Nc5 {[%clk 0:01:52.4]} 21.
Bxa8 {[%clk 0:01:12.2]} 21... Qxa8 {[%clk 0:01:53.3]} 22. Nf3 {[%clk 0:01:07.9]}
22... e5 {[%clk 0:01:47.6]} 23. Bg5 {[%clk 0:00:59.9]} 23... Bg7 {[%clk
0:01:44.6]} 24. Qd2 {[%clk 0:00:51.7]} 24... e4 {[%clk 0:01:34.3]} 25. dxe4
{[%clk 0:00:38.3]} 25... Nxe4 {[%clk 0:01:35.2]} 26. Qd3 {[%clk 0:00:30.9]}
26... Nc3 {[%clk 0:01:32]} 27. Rfe1 {[%clk 0:00:21.3]} 27... b2 {[%clk
0:01:30.8]} 28. Rab1 {[%clk 0:00:18.5]} 28... Nxb1 {[%clk 0:01:30.2]} 29. Qxb1
{[%clk 0:00:18.6]} 29... Bc6 {[%clk 0:01:24.5]} 30. Nd2 {[%clk 0:00:14.7]} 30...
Qxa3 {[%clk 0:01:20.4]} 31. e3 {[%clk 0:00:10.5]} 31... dxe3 {[%clk 0:01:16.8]}
32. Bxe3 {[%clk 0:00:10.2]} 32... Qa1 {[%clk 0:01:10.1]} 33. Nb3 {[%clk
0:00:07.9]} 33... Qxb1 {[%clk 0:01:09.6]} 34. Rxb1 {[%clk 0:00:08.3]} 34... Be4
{[%clk 0:01:10.2]} 35. Re1 {[%clk 0:00:07.7]} 35... b1=Q {[%clk 0:01:09.7]} 36.
Rxb1 {[%clk 0:00:07.8]} 36... Bxb1 {[%clk 0:01:10.6]} 37. Nd2 {[%clk 0:00:08.1]}
37... Bd3 {[%clk 0:01:10.6]} 38. Kg2 {[%clk 0:00:07.8]} 38... Ra8 {[%clk
0:01:09.4]} 39. Kg3 {[%clk 0:00:07.8]} 39... Be5+ {[%clk 0:01:08.8]} 40. Kf3
{[%clk 0:00:08.1]} 40... Bc3 {[%clk 0:01:08.5]} 41. Ne4 {[%clk 0:00:07.5]} 41...
Bxe4+ {[%clk 0:01:08.4]} 42. Kxe4 {[%clk 0:00:07.6]} 42... Ra4 {[%clk 0:01:09]}
43. Kd3 {[%clk 0:00:07.4]} 43... Be5 {[%clk 0:01:09.3]} 44. f4 {[%clk
0:00:07.8]} 44... Bd6 {[%clk 0:01:09.9]} 45. h4 {[%clk 0:00:06.3]} 45... f5
{[%clk 0:01:10.3]} 46. gxf5 {[%clk 0:00:05.9]} 46... gxf5 {[%clk 0:01:10.7]} 47.
h5 {[%clk 0:00:05.5]} 47... Kf7 {[%clk 0:01:10.9]} 48. h6 {[%clk 0:00:05.5]}
48... Kg6 {[%clk 0:01:10.8]} 49. Kd4 {[%clk 0:00:04.3]} 49... Bc5+ {[%clk
0:01:10.3]} 50. Kd3 {[%clk 0:00:03.8]} 50... Bxe3 {[%clk 0:01:09.9]} 0-1

[Event "Early-Titled-Tuesday-Blitz-May-28-2024"]
[Site "Chess.com"]
[Date "2024.05.28"]
[Round "1"]
[White "the_chess_child"]
[Black "SipahiPower"]
[Result "1-0"]
[WhiteElo "2911"]
[BlackElo "2509"]
[TimeControl "180+1"]
[EndTime "8:07:10 PDT"]
[Termination "the_chess_child won by resignation"]

1. e4 {[%clk 0:03:00.9]} 1... e6 {[%clk 0:02:59.3]} 2. d3 {[%clk 0:03:00.3]}
2... d5 {[%clk 0:03:00.2]} 3. Nd2 {[%clk 0:03:00]} 3... Nf6 {[%clk 0:03:00.4]}
4. Ngf3 {[%clk 0:03:00.2]} 4... Nc6 {[%clk 0:03:00.7]} 5. c3 {[%clk 0:02:56.7]}
5... a5 {[%clk 0:03:00.8]} 6. e5 {[%clk 0:02:54.5]} 6... Nd7 {[%clk 0:03:00.9]}
7. d4 {[%clk 0:02:54.7]} 7... f6 {[%clk 0:03:01.4]} 8. Bb5 {[%clk 0:02:54.5]}
8... fxe5 {[%clk 0:02:49.4]} 9. dxe5 {[%clk 0:02:55.4]} 9... Be7 {[%clk
0:02:13.2]} 10. Nd4 {[%clk 0:02:54.9]} 10... Ndxe5 {[%clk 0:02:03.8]} 11. f4
{[%clk 0:02:35]} 11... O-O {[%clk 0:01:56.7]} 12. fxe5 {[%clk 0:02:32.5]} 12...
Nxe5 {[%clk 0:01:54.8]} 13. N2f3 {[%clk 0:02:30.5]} 13... Ng4 {[%clk 0:01:31.6]}
14. Qe2 {[%clk 0:01:41.7]} 14... c6 {[%clk 0:00:55.9]} 15. Nxe6 {[%clk
0:01:29.1]} 15... Qd6 {[%clk 0:00:38.4]} 16. Nxf8 {[%clk 0:01:27.1]} 16... cxb5
{[%clk 0:00:37]} 17. Nxh7 {[%clk 0:00:41.5]} 17... Kxh7 {[%clk 0:00:37.9]} 18.
O-O {[%clk 0:00:38.6]} 18... Bd7 {[%clk 0:00:26.7]} 19. h3 {[%clk 0:00:36.8]}
19... Nf6 {[%clk 0:00:14.1]} 20. Ng5+ {[%clk 0:00:36.8]} 20... Kg8 {[%clk
0:00:14.3]} 21. Bf4 {[%clk 0:00:37]} 21... Qc5+ {[%clk 0:00:08.9]} 22. Kh1
{[%clk 0:00:35.3]} 22... Re8 {[%clk 0:00:08.8]} 23. Qd3 {[%clk 0:00:34.8]} 23...
Bf8 {[%clk 0:00:05.8]} 24. Rae1 {[%clk 0:00:30.7]} 24... Bc6 {[%clk 0:00:03]}
25. Rxe8 {[%clk 0:00:29.9]} 25... Bxe8 {[%clk 0:00:03.9]} 26. Be3 {[%clk
0:00:29.8]} 26... Qc4 {[%clk 0:00:01.9]} 27. Qxc4 {[%clk 0:00:28.8]} 27... bxc4
{[%clk 0:00:02.8]} 28. Bd4 {[%clk 0:00:29]} 28... Be7 {[%clk 0:00:02.6]} 29. Re1
{[%clk 0:00:28.1]} 29... Kf8 {[%clk 0:00:02.7]} 30. Ne6+ {[%clk 0:00:27.5]}
30... Kf7 {[%clk 0:00:02.9]} 31. Nxg7 {[%clk 0:00:26.2]} 31... Bd6 {[%clk
0:00:02]} 32. Bxf6 {[%clk 0:00:24.3]} 32... Bc6 {[%clk 0:00:01.8]} 33. Bd4
{[%clk 0:00:24]} 33... Bg3 {[%clk 0:00:02.1]} 34. Rf1+ {[%clk 0:00:23.3]} 1-0